bitfinex/quotes_ETHUSD_20220309
["timestamp","ask_amount","ask_price","bid_price","bid_amount"]
[1646798348450,1.67161,2700.1,2699.9,4.852e-05]
[1646798349050,3.5,2700.0,2699.9,4.852e-05]
[1646798349249,4.245,2700.0,2699.9,4.852e-05]
[1646798350350,5.2008,2700.0,2699.9,4.852e-05]
[1646798350553,5.20267967,2700.0,2699.9,4.852e-05]
[1646798351197,1.65267967,2700.0,2699.9,4.852e-05]
[1646798351402,0.00187967,2700.0,2699.9,4.852e-05]
[1646798351995,3.50187967,2700.0,2699.9,4.852e-05]
[1646798352194,0.00187967,2700.0,2699.9,4.852e-05]
[1646798352999,0.0024,2700.7,2700.1,0.00168866]
[1646798353600,3.50093349,2700.9,2700.1,0.00168866]
[1646798353800,3.5,2700.9,2700.1,0.00168866]
[1646798354000,4.42636,2700.9,2700.1,0.00168866]
[1646798354202,1.07569199,2700.3,2700.1,0.00168866]
[1646798354643,1.37569199,2700.3,2700.1,0.00168866]
[1646798354845,3.5,2700.2,2700.1,0.00168866]
[1646798355546,1.67569199,2700.3,2700.1,0.00168866]
[1646798355547,1.07569199,2700.3,2700.1,0.00168866]
[1646798355946,0.92629,2700.4,2700.1,0.00168866]
[1646798356246,0.92808354,2700.4,2700.1,0.00168866]
[1646798357049,1.52808354,2700.4,2700.1,0.00168866]
[1646798357246,3.5,2700.3,2700.1,0.00168866]
[1646798357648,2.45459554,2700.4,2700.1,0.00168866]
[1646798357649,1.00949052,2700.2,2700.1,0.00168866]
[1646798357847,3.5,2700.3,2700.1,0.00168866]
[1646798358048,0.00179354,2700.4,2700.1,0.00168866]
[1646798358506,3.50179354,2700.4,2700.1,0.00168866]
[1646798358808,0.0024,2700.3,2700.1,0.00168866]
[1646798359208,0.0024,2700.3,2700.1,8.866e-05]
[1646798359406,0.15839511,2700.3,2700.1,8.866e-05]
[1646798359608,1.67187811,2700.3,2700.1,8.866e-05]
[1646798359908,3.5,2700.2,2700.1,8.866e-05]
[1646798360108,3.8,2700.2,2700.1,8.866e-05]
[1646798360308,3.7,2700.2,2700.1,8.866e-05]
[1646798360811,0.2,2700.2,2700.1,8.866e-05]
[1646798361009,1.38675543,2700.3,2700.1,8.866e-05]
[1646798361214,1.08675543,2700.3,2700.1,8.866e-05]
[1646798361410,1.38675543,2700.3,2700.1,8.866e-05]
[1646798361808,1.08675543,2700.3,2700.1,8.866e-05]
[1646798362009,1.38675543,2700.3,2700.1,8.866e-05]
[1646798362455,0.93076032,2700.3,2700.1,8.866e-05]
[1646798362856,3.92654,2700.5,2700.1,8.866e-05]
[1646798362857,1.38742056,2700.5,2700.1,8.866e-05]
[1646798364057,0.92647,2700.4,2700.1,8.866e-05]
[1646798364660,1.22647,2700.4,2700.1,8.866e-05]
[1646798365159,4.72647,2700.4,2700.1,8.866e-05]
[1646798365560,0.3,2700.4,2700.1,8.866e-05]
[1646798365909,1.38742056,2700.5,2700.1,8.866e-05]
[1646798366102,0.00192202,2700.4,2700.1,8.866e-05]
[1646798366499,3.50192202,2700.4,2700.1,8.866e-05]
[1646798367104,0.00192202,2700.4,2700.1,8.866e-05]
[1646798369002,0.00192202,2700.4,2699.9,0.3804]
[1646798369202,0.00192202,2700.4,2699.8,0.02701578]
[1646798369503,0.00192202,2700.4,2699.8,12.02026968]
[1646798369751,0.00192202,2700.4,2699.8,13.02741577]
[1646798369955,0.00192202,2700.4,2700.3,0.8749646]
[1646798371055,0.00192202,2700.4,2699.8,12.02741394]
[1646798371656,1.33934258,2700.5,2700.0,12.0004]
[1646798371853,1.33934258,2700.5,2700.2,11.62]
[1646798372254,1.33934258,2700.5,2700.2,12.62]
[1646798374302,1.33934258,2700.5,2700.1,1.11647885]
[1646798374504,1.63934258,2700.5,2700.1,12.73647885]
[1646798374705,1.63934258,2700.5,2700.1,1.11647885]
[1646798375106,1.33934258,2700.5,2700.1,1.11647885]
[1646798375504,1.63934258,2700.5,2700.1,1.11647885]
[1646798375905,0.00178473,2700.4,2699.8,0.02678428]
[1646798376107,3.50178473,2700.4,2699.8,0.02678428]
[1646798376508,0.00178473,2700.4,2699.8,0.02678428]
[1646798376705,0.00178473,2700.4,2699.8,0.01986968]
[1646798376907,0.00178473,2700.4,2699.9,1.10351736]
[1646798377176,0.00178473,2700.4,2699.9,15.72351736]
[1646798377377,0.00178473,2700.4,2700.2,11.62]
[1646798377581,0.00178473,2700.4,2700.3,18.37765177]
[1646798377876,0.00178473,2700.4,2700.0,11.62]
[1646798378078,0.00178473,2700.4,2699.9,1.10351736]
[1646798378079,3.50178473,2700.4,2699.9,1.10351736]
[1646798378280,3.50178473,2700.4,2699.8,0.01986968]
[1646798378681,0.00178473,2700.4,2699.8,0.01986968]
[1646798378882,0.00178473,2700.4,2699.9,1.38961197]
[1646798379281,0.00178473,2700.4,2699.8,0.02679064]
[1646798380083,0.00178473,2700.4,2699.9,1.39197386]
[1646798380284,0.00178473,2700.4,2699.8,0.01986968]
[1646798380483,0.00178473,2700.4,2699.9,1.39220377]
[1646798380484,1.0,2700.0,2699.9,1.39220377]
[1646798382699,1.0,2700.0,2699.9,13.01220377]
[1646798382999,0.92622,2700.9,2700.0,0.18007636]
[1646798383000,0.65003573,2700.9,2700.0,0.18007636]
[1646798383199,0.65003573,2700.9,2700.1,1.39220377]
[1646798383400,0.65003573,2700.9,2700.2,1.39220377]
[1646798383597,0.65003573,2700.9,2700.3,1.39220377]
[1646798383598,0.07577525,2700.8,2700.3,1.39220377]
[1646798383798,0.07577525,2700.8,2700.0,0.18007636]
[1646798384002,0.07577525,2700.8,2700.1,1.35815077]
[1646798384003,1.5,2700.6,2700.1,1.35815077]
[1646798385253,1.5,2700.6,2700.0,0.18007636]
[1646798385254,1.02253358,2700.5,2700.0,0.18007636]
[1646798385652,0.07578565,2700.4,2700.0,0.18007636]
[1646798386856,1.92882565,2700.4,2700.0,0.18007636]
[1646798387054,0.07578565,2700.3,2700.0,0.18007636]
[1646798388254,0.07578565,2700.2,2700.0,0.18007636]
[1646798388703,0.07578565,2700.4,2700.0,0.18007636]
[1646798388902,0.07814447,2700.3,2700.0,0.18007636]
[1646798389103,0.92651,2700.3,2700.0,0.18007636]
[1646798389304,0.3,2700.3,2700.0,0.18007636]
[1646798389703,0.3,2700.4,2700.0,0.18007636]
[1646798389905,1.32253358,2700.5,2700.0,0.18007636]
[1646798390106,0.07811485,2700.4,2700.0,0.18007636]
[1646798390706,1.32253358,2700.5,2700.0,0.18007636]
[1646798391303,0.3,2700.5,2700.0,0.18007636]
[1646798391505,0.07808916,2700.4,2700.0,0.18007636]
[1646798391904,0.3,2700.4,2700.0,0.18007636]
[1646798392148,5.544438,2700.6,2700.0,0.18007636]
[1646798392344,0.07808735,2700.5,2700.0,0.18007636]
[1646798394854,1.648438,2700.6,2700.1,12.97018151]
[1646798395056,1.648438,2700.6,2700.2,1.35018151]
[1646798395453,1.648438,2700.6,2700.0,0.18007636]
[1646798395656,1.648438,2700.6,2700.1,1.35061123]
[1646798396695,0.08377126,2700.5,2700.0,0.18007636]
[1646798397097,0.08377126,2700.5,2700.0,11.80007636]
[1646798397299,1.648438,2700.6,2700.1,1.35430561]
[1646798397496,0.0800061,2700.5,2700.0,1.18007636]
[1646798397796,0.0800061,2700.5,2700.0,0.18007636]
[1646798398397,0.3800061,2700.5,2700.0,0.18007636]
[1646798398601,0.0800061,2700.4,2700.0,0.18007636]
[1646798399301,1.0063861,2700.4,2700.0,0.18007636]
[1646798399502,0.92638,2700.4,2700.0,0.18007636]
[1646798400262,0.25038352,2700.4,2700.0,0.18007636]
[1646798400462,1.5,2700.6,2700.0,0.18007636]
[1646798400764,1.39185,2700.6,2700.0,0.18007636]
[1646798401366,1.39185,2700.6,2700.4,0.97105281]
[1646798401964,1.39185,2700.6,2700.4,12.59105281]
[1646798402569,1.39185,2700.6,2700.2,11.62]
[1646798402767,1.39185,2700.6,2700.2,12.62]
[1646798402967,0.92619,2700.9,2700.8,0.22477569]
[1646798403605,0.927192,2700.9,2700.8,0.22477569]
[1646798403805,0.001002,2700.9,2700.8,0.22477569]
[1646798404005,0.001002,2700.9,2700.8,1.81227615]
[1646798404405,0.92612,2701.2,2700.8,2.06956516]
[1646798404706,0.92612,2701.2,2700.8,0.22477569]
[1646798405112,0.5,2701.3,2700.8,11.84477569]
[1646798405113,1.5,2701.0,2700.8,11.84477569]
[1646798405310,1.5,2701.0,2700.8,12.84477569]
[1646798405707,0.5,2701.8,2701.1,11.62]
[1646798405906,0.63288196,2702.2,2701.5,14.62]
[1646798406106,1.33697824,2702.5,2702.0,5.5]
[1646798406304,7.34400098,2703.2,2702.2,14.62]
[1646798406305,1.02430098,2703.2,2702.2,14.62]
[1646798406506,1.02430098,2703.2,2702.5,14.62]
[1646798406705,1.02430098,2703.2,2702.5,16.43932564]
[1646798406905,1.02430098,2703.2,2702.9,14.62]
[1646798407151,0.0052,2703.3,2702.9,13.76423572]
[1646798407354,0.37553658,2703.8,2702.9,13.76423572]
[1646798407355,0.37553658,2703.8,2703.2,3.0]
[1646798407553,1.80820864,2704.9,2703.6,14.62]
[1646798407755,3.5,2705.0,2703.8,11.62]
[1646798407950,4.76980864,2705.1,2703.8,12.0004]
[1646798408154,4.76980864,2705.1,2703.9,0.445]
[1646798408155,3.5,2705.1,2703.9,0.445]
[1646798408351,1.80820864,2705.2,2703.9,0.445]
[1646798408352,0.00100215,2704.4,2703.9,0.445]
[1646798408755,0.00100215,2704.4,2703.4,3.0]
[1646798408756,0.00100215,2704.4,2703.6,3.3]
[1646798408954,0.00100215,2704.4,2703.5,0.445]
[1646798409154,3.5,2705.1,2704.0,0.25728901]
[1646798409354,0.99858599,2705.2,2704.1,0.99067441]
[1646798409355,0.92471,2705.2,2704.1,0.99067441]
[1646798409556,5.3349,2705.6,2704.3,3.0]
[1646798409754,5.3349,2705.6,2704.4,0.445]
[1646798409956,3.5,2705.5,2705.0,1.58750046]
[1646798410156,3.5,2705.5,2703.8,1.0]
[1646798410360,3.7277,2706.1,2703.8,1.0]
[1646798410361,0.92504,2704.9,2703.8,1.0]
[1646798410557,0.92504,2704.9,2704.8,0.25728901]
[1646798410558,0.9250426,2704.9,2704.8,0.25728901]
[1646798410756,1.85007,2705.0,2702.9,4.42495]
[1646798410757,1.85262569,2705.0,2702.9,1.0]
[1646798411012,0.5,2703.4,2703.0,3.5]
[1646798411214,0.5,2703.4,2702.3,0.445]
[1646798411618,0.92522,2703.7,2702.5,3.0]
[1646798411811,0.01254066,2704.6,2702.8,3.0]
[1646798412012,0.00255569,2705.0,2703.2,3.0]
[1646798412310,0.00255569,2705.0,2703.4,5.5]
[1646798412509,0.00255569,2705.0,2704.1,1.14986798]
[1646798412710,0.00255569,2705.0,2703.7,0.445]
[1646798412915,0.00255569,2705.0,2703.6,0.445]
[1646798413111,0.00100215,2704.3,2703.6,0.445]
[1646798413817,1.85228569,2705.0,2704.0,5.5]
[1646798414016,0.00255569,2705.0,2704.4,3.0]
[1646798414215,0.00255569,2705.0,2704.4,2.1872]
[1646798414414,0.00255569,2705.0,2704.6,5.5]
[1646798414663,0.00255569,2705.0,2704.6,8.5]
[1646798414865,0.00255569,2705.0,2704.6,1.0]
[1646798415264,0.00255569,2705.0,2704.5,0.1848]
[1646798416067,0.00255569,2705.0,2704.6,0.445]
[1646798416265,3.50207431,2706.0,2704.6,0.445]
[1646798416665,3.50207431,2706.0,2704.7,0.1847]
[1646798416864,0.00099964,2704.9,2704.7,0.1847]
[1646798417063,0.00099964,2704.9,2704.5,0.1847]
[1646798417474,0.00099964,2704.9,2704.6,3.0]
[1646798417665,4.42647431,2706.0,2704.7,0.1847]
[1646798417969,0.00099964,2704.8,2704.7,0.1847]
[1646798418410,0.00099964,2704.8,2703.7,2.0]
[1646798418411,0.00099964,2704.8,2704.0,0.445]
[1646798418605,0.00099964,2704.8,2704.1,0.21725827]
[1646798418804,4.4246751,2705.7,2704.1,0.21725827]
[1646798419006,3.5,2705.7,2704.1,3.21725827]
[1646798419205,3.5,2705.7,2704.7,1.0494764]
[1646798419206,3.8,2705.7,2704.7,1.0494764]
[1646798419405,2.58576691,2704.9,2704.7,1.0494764]
[1646798420005,2.58576691,2704.9,2704.7,1.2341764]
[1646798420206,3.5039962,2706.1,2704.8,5.0]
[1646798420410,2.77386,2707.0,2705.5,1.03382365]
[1646798420411,0.13819997,2706.2,2705.5,1.03382365]
[1646798420613,0.00399679,2706.1,2705.2,0.2213]
[1646798421010,0.00399679,2706.1,2704.8,1.0]
[1646798421210,0.15395368,2706.1,2704.4,0.445]
[1646798421409,0.15395368,2706.1,2704.5,3.0]
[1646798421410,1.07833368,2706.1,2704.5,3.0]
[1646798421607,1.07833368,2706.1,2704.8,1.01884267]
[1646798421608,0.00099964,2705.8,2704.8,1.01884267]
[1646798422451,4.42443,2706.1,2704.8,1.94320267]
[1646798422652,4.42443,2706.1,2704.8,2.24320267]
[1646798422653,0.00099964,2705.4,2704.8,2.24320267]
[1646798422851,0.00099964,2705.4,2705.3,3.0]
[1646798423055,0.00399751,2706.2,2705.8,0.00146611]
[1646798423257,0.00399751,2706.2,2705.8,0.44646611]
[1646798423654,3.5,2707.1,2705.8,1.37048611]
[1646798424057,3.5,2707.1,2705.9,0.87310698]
[1646798424455,13.2468,2707.2,2705.9,0.87310698]
[1646798424655,2.9558,2707.2,2705.9,1.17310698]
[1646798424855,2.9558,2707.2,2706.1,0.92395]
[1646798425659,3.5,2707.6,2706.4,1.21826032]
[1646798425939,9.8608,2708.9,2706.8,0.92372]
[1646798426121,2.30098319,2709.2,2709.0,0.09228469]
[1646798426322,15.1191,2709.7,2708.8,0.2692]
[1646798426519,6.1012,2709.7,2708.7,0.2136]
[1646798426720,6.445,2710.0,2708.7,0.2136]
[1646798426921,6.445,2710.0,2708.2,0.445]
[1646798426922,0.01235291,2709.7,2707.9,0.445]
[1646798427220,0.01235291,2709.7,2707.3,1.0]
[1646798427221,3.45421964,2709.7,2707.3,1.0]
[1646798427421,9.56321964,2709.7,2707.5,1.0]
[1646798427719,9.56321964,2709.7,2707.4,0.445]
[1646798427720,3.50139708,2709.6,2707.4,0.445]
[1646798427921,3.50139708,2709.6,2707.6,1.04401142]
[1646798427922,1.14690069,2708.7,2707.6,1.04401142]
[1646798428121,3.65376691,2709.6,2707.6,1.04401142]
[1646798428122,4.42353,2709.2,2707.6,1.04401142]
[1646798428324,3.5,2709.1,2707.6,1.04401142]
[1646798428527,0.92353,2709.2,2707.6,1.04401142]
[1646798428726,0.13819997,2710.1,2707.6,1.97351142]
[1646798428727,0.00139708,2708.4,2707.6,1.97351142]
[1646798429328,0.00139708,2708.4,2707.8,2.91488149]
[1646798429525,0.00139708,2708.4,2707.9,7.1295]
[1646798429764,1.0,2710.0,2708.0,1.22332]
[1646798429960,1.0,2710.0,2708.1,4.1294]
[1646798429961,0.00083816,2708.5,2708.1,4.1294]
[1646798430161,0.00139708,2708.3,2708.1,0.6294]
[1646798430362,0.00139708,2708.3,2708.2,0.95955401]
[1646798430563,0.00139708,2708.3,2708.2,1.40455401]
[1646798430763,9.708e-05,2708.3,2708.2,1.40455401]
[1646798430967,1.073e-05,2708.6,2708.2,17.87072491]
[1646798431172,1.073e-05,2708.6,2708.5,1.84586]
[1646798431363,1.073e-05,2708.6,2708.5,2.29086]
[1646798431962,1.073e-05,2708.6,2708.5,2.47546]
[1646798432164,1.073e-05,2708.6,2708.5,0.6296]
[1646798432364,1.073e-05,2708.6,2708.5,0.69788149]
[1646798434706,1.073e-05,2708.6,2708.2,1.0]
[1646798434907,1.073e-05,2708.6,2707.9,0.5084388]
[1646798435308,1.16332078,2708.3,2707.9,0.5084388]
[1646798435609,5.5,2708.0,2707.1,0.1846]
[1646798435808,9.424071,2707.9,2706.9,0.04777867]
[1646798436008,0.9242,2707.5,2705.9,0.1845]
[1646798436407,1.04149884,2706.3,2705.9,0.1845]
[1646798436606,1.04149884,2706.3,2705.8,0.00146611]
[1646798436809,0.92437,2706.8,2705.8,0.00146611]
[1646798437006,0.9244,2706.9,2705.9,0.1847]
[1646798437254,0.02004896,2706.6,2705.9,0.1847]
[1646798437455,0.02004896,2706.6,2705.8,0.00146611]
[1646798437456,3.0,2706.5,2705.8,0.00146611]
[1646798437655,0.02004896,2706.6,2705.2,0.04777867]
[1646798437656,1.15974314,2705.7,2705.2,0.04777867]
[1646798437862,3.5,2705.6,2705.2,0.04777867]
[1646798438059,0.3,2705.6,2705.2,0.04777867]
[1646798438259,3.5,2706.2,2705.2,0.04777867]
[1646798438462,2.77372,2707.0,2705.2,0.04777867]
[1646798438463,6.0682,2707.2,2705.2,0.04777867]
[1646798438658,0.00422067,2706.1,2705.2,0.24334618]
[1646798438863,0.00422067,2706.1,2705.2,0.96285534]
[1646798439060,0.00422067,2706.1,2705.2,0.04777867]
[1646798439461,0.92447,2706.2,2705.2,0.04777867]
[1646798439665,0.92869084,2706.2,2705.2,0.04777867]
[1646798439867,1.85326084,2706.2,2705.2,0.04777867]
[1646798440064,0.1847,2706.1,2705.2,0.04777867]
[1646798440266,3.6847,2706.1,2705.2,0.04777867]
[1646798440465,0.92456,2705.9,2705.2,0.04777867]
[1646798440665,5.5,2705.7,2704.6,0.38673787]
[1646798440921,5.5,2705.7,2704.1,0.1694796]
[1646798440922,0.924935,2705.4,2704.1,0.1694796]
[1646798441122,3.6847,2705.3,2704.1,0.1694796]
[1646798441318,1.0899057,2704.9,2704.1,0.1694796]
[1646798441523,0.92499,2704.8,2703.3,11.66777867]
[1646798441722,0.92499,2704.8,2703.0,0.21725827]
[1646798441723,6.95726797,2704.7,2703.0,0.21725827]
[1646798441921,0.01286336,2703.4,2703.0,0.21725827]
[1646798442318,0.01286336,2703.4,2703.0,0.04777867]
[1646798442518,0.1849,2704.1,2703.0,0.04777867]
[1646798442519,0.92522,2704.1,2703.0,0.04777867]
[1646798442718,0.43819997,2704.3,2703.0,0.23267867]
[1646798443120,0.92509,2704.6,2704.4,0.64757917]
[1646798443419,6.42509,2704.6,2703.0,0.04777867]
[1646798443621,0.88006203,2703.7,2703.0,0.04777867]
[1646798443820,5.945,2704.6,2703.0,0.04777867]
[1646798444220,5.945,2704.6,2702.8,0.1847]
[1646798444221,0.92521,2704.4,2702.8,0.1847]
[1646798444421,5.5,2704.6,2702.8,0.1847]
[1646798444661,0.3,2704.4,2702.8,0.1847]
[1646798444860,0.89305041,2703.9,2702.8,1.27760435]
[1646798445060,1.19305041,2703.9,2702.8,1.27760435]
[1646798445262,1.19305041,2703.9,2702.8,0.1506]
[1646798445460,1.19305041,2703.9,2702.7,0.13819997]
[1646798445661,1.37795041,2703.9,2702.7,0.13819997]
[1646798446060,0.92524,2703.7,2702.7,0.13819997]
[1646798446862,0.3,2703.9,2702.7,0.13819997]
[1646798447662,0.92525,2703.7,2702.7,0.13819997]
[1646798448261,0.3,2703.8,2702.7,0.13819997]
[1646798448525,0.1849,2703.9,2702.7,0.13819997]
[1646798449025,0.1849,2703.9,2702.9,0.87380341]
[1646798449228,1.85058,2703.8,2702.9,0.87380341]
[1646798449426,2.15058,2703.8,2702.9,0.87380341]
[1646798450127,1.85058,2703.8,2702.9,0.87380341]
[1646798450333,5.35058,2703.8,2702.9,0.87380341]
[1646798450526,1.11007,2703.9,2702.9,0.87380341]
[1646798450527,0.92517,2703.9,2702.9,0.87380341]
[1646798450729,3.5,2704.2,2702.9,0.87380341]
[1646798450928,6.0151,2704.8,2702.7,0.13819997]
[1646798450929,3.5,2704.6,2702.7,0.13819997]
[1646798451131,1.11017,2704.5,2702.7,0.13819997]
[1646798451329,3.5,2704.4,2702.7,0.13819997]
[1646798451628,0.9252888,2704.2,2702.7,0.13819997]
[1646798451833,3.6849,2704.1,2702.7,0.13819997]
[1646798452028,1.85063,2703.9,2702.7,0.13819997]
[1646798452255,3.5,2703.8,2702.7,0.13819997]
[1646798452456,1.85063,2703.9,2702.7,0.13819997]
[1646798452862,3.8,2703.8,2702.7,0.13819997]
[1646798453060,1.11658101,2703.7,2702.7,0.13819997]
[1646798453261,1.85073,2703.5,2702.7,0.13819997]
[1646798454564,0.92537,2703.4,2703.1,1.02631238]
[1646798454767,3.5,2703.8,2703.4,0.66801891]
[1646798454964,3.6849,2704.0,2703.4,0.66801891]
[1646798455266,1.85052,2703.8,2703.4,0.66801891]
[1646798455666,2.15052,2703.8,2703.4,0.66801891]
[1646798456111,0.9252,2703.7,2703.4,0.66801891]
[1646798456311,6.27565,2704.6,2703.5,1.22745709]
[1646798456312,6.46055,2704.6,2703.5,1.22745709]
[1646798456511,3.5,2704.5,2703.5,1.22745709]
[1646798456709,3.5,2704.5,2703.4,0.66801891]
[1646798456923,2.96055,2704.6,2703.4,0.66801891]
[1646798457310,3.5,2704.5,2703.4,0.66801891]
[1646798457514,0.1849,2704.4,2703.4,0.66801891]
[1646798457811,0.1849,2704.4,2703.4,1.81989615]
[1646798458011,2.035,2704.4,2703.4,1.81989615]
[1646798458211,1.85026,2704.1,2703.4,1.81989615]
[1646798458410,1.85026,2704.1,2703.4,0.66801891]
[1646798458811,3.5,2704.0,2703.4,0.66801891]
[1646798460063,2.77547,2704.1,2703.4,0.66801891]
[1646798460366,2.77565,2704.6,2703.4,0.66801891]
[1646798460561,0.92509,2704.5,2703.5,1.19057746]
[1646798460861,0.92509,2704.5,2703.4,0.66801891]
[1646798461062,3.5,2704.4,2703.4,0.66801891]
[1646798461260,1.5,2704.0,2703.4,0.66801891]
[1646798461463,3.65044,2704.0,2703.4,0.66801891]
[1646798461662,3.95044,2704.0,2703.4,0.66801891]
[1646798462064,3.35044,2704.0,2703.4,0.66801891]
[1646798462264,0.92522,2703.9,2703.4,0.66801891]
[1646798462463,1.5,2704.0,2703.4,0.66801891]
[1646798463064,3.5,2704.5,2703.4,0.66801891]
[1646798463065,3.38535326,2704.5,2703.4,0.66801891]
[1646798463263,3.5,2704.5,2703.4,0.66801891]
[1646798464110,0.92503,2704.3,2703.4,0.66801891]
[1646798464314,3.5,2704.2,2703.4,0.66801891]
[1646798465513,1.85046,2704.0,2703.4,0.66801891]
[1646798465715,2.45046,2704.0,2703.4,0.66801891]
[1646798465917,5.95046,2704.0,2703.4,0.66801891]
[1646798466715,0.92521,2703.9,2703.4,0.66801891]
[1646798467164,3.5,2703.8,2703.4,0.66801891]
[1646798467454,0.92521,2703.9,2703.4,0.66801891]
[1646798467455,1.22521,2703.9,2703.4,0.66801891]
[1646798467650,1.22521,2703.9,2703.4,1.70124354]
[1646798467853,0.92521,2703.9,2703.4,1.70124354]
[1646798468054,0.92521,2703.9,2703.4,0.66801891]
[1646798469057,5.5,2703.6,2702.8,0.86903308]
[1646798469257,0.9256,2703.4,2702.8,0.86903308]
[1646798469461,0.0127108,2703.1,2702.8,0.32403308]
[1646798470058,1.85123,2703.2,2702.8,0.32403308]
[1646798470263,0.3,2703.1,2702.8,0.32403308]
[1646798470905,1.85123,2703.2,2702.8,0.32403308]
[1646798471105,0.92562,2703.1,2702.8,0.32403308]
[1646798471305,1.22562,2703.1,2702.8,0.32403308]
[1646798471505,0.92562,2703.1,2702.8,0.32403308]
[1646798471906,1.22562,2703.1,2702.8,0.32403308]
[1646798472105,0.92562,2703.1,2702.8,0.32403308]
[1646798472311,0.1849,2703.6,2702.8,0.32403308]
[1646798472511,2.77648,2703.7,2702.8,0.32403308]
[1646798473110,3.76934232,2703.7,2702.8,0.32403308]
[1646798473312,4.69473232,2703.7,2702.8,0.32403308]
[1646798473510,3.70187,2703.7,2702.8,0.32403308]
[1646798474111,0.92529,2703.5,2702.8,0.32403308]
[1646798474512,9.4154,2704.1,2703.3,1.14027058]
[1646798474513,9.2305,2704.1,2703.3,1.14027058]
[1646798474789,0.1849,2704.2,2703.3,1.14027058]
[1646798474979,0.1849,2704.3,2703.3,1.14027058]
[1646798475179,2.87474712,2704.8,2703.3,1.14027058]
[1646798475381,0.1849,2704.8,2703.3,1.14027058]
[1646798475580,0.9252,2704.2,2703.3,1.14027058]
[1646798475778,1.1101,2704.2,2703.3,1.14027058]
[1646798475979,0.9252,2704.2,2703.3,1.14027058]
[1646798476779,0.9252,2704.2,2702.9,0.1849]
[1646798476979,1.85043,2704.0,2702.9,0.1849]
[1646798477379,3.07567,2704.0,2702.9,0.1849]
[1646798477580,3.07567,2704.0,2702.8,0.32403308]
[1646798477581,3.56057,2704.0,2702.8,0.32403308]
[1646798477779,4.68230185,2704.0,2702.9,1.01771268]
[1646798478179,0.92527,2703.7,2702.9,1.01771268]
[1646798478418,0.92527,2703.7,2702.8,0.32403308]
[1646798478821,15.12,2703.6,2702.8,0.32403308]
[1646798479022,15.12,2703.6,2702.8,0.27625441]
[1646798479023,1.85105,2703.5,2702.8,0.27625441]
[1646798479221,0.92541,2703.3,2702.8,0.27625441]
[1646798479621,1.22541,2703.3,2702.8,0.27625441]
[1646798480020,1.22541,2703.3,2702.8,0.32403308]
[1646798480222,3.5,2703.2,2702.8,0.32403308]
[1646798480627,1.22541,2703.3,2702.8,0.32403308]
[1646798480820,3.5,2703.2,2702.8,0.32403308]
[1646798481819,1.22541,2703.3,2702.8,0.32403308]
[1646798482020,1.22541,2703.3,2702.8,0.37181175]
[1646798483083,3.11020762,2703.4,2702.8,0.37181175]
[1646798483285,1.85105,2703.5,2702.8,0.37181175]
[1646798483883,0.92541,2703.3,2702.8,0.37181175]
[1646798484084,0.92541,2703.3,2702.8,0.48229521]
[1646798484283,1.22541,2703.3,2702.8,0.48229521]
[1646798484583,0.1849,2703.4,2702.8,0.48229521]
[1646798484784,0.3,2703.3,2702.8,0.48229521]
[1646798485282,0.3,2703.3,2702.8,0.54129135]
[1646798485283,1.22547,2703.3,2702.8,0.54129135]
[1646798485482,1.22547,2703.3,2702.9,1.5142962]
[1646798487516,0.92547,2703.3,2702.9,1.5142962]
[1646798489015,0.1849,2703.4,2702.9,1.5142962]
[1646798490265,2.96149,2703.4,2702.8,0.71077095]
[1646798490763,3.5,2703.3,2702.8,0.71077095]
[1646798492164,0.3,2703.4,2702.8,0.71077095]
[1646798492366,4.72551,2703.5,2702.8,0.71077095]
[1646798492969,0.03383,2704.0,2703.0,4.0]
[1646798493177,0.03383,2704.0,2703.2,0.01272096]
[1646798493430,1.1832,2704.7,2703.3,1.51422489]
[1646798493620,15.66866194,2704.9,2703.3,2.3901924]
[1646798493621,0.41816194,2704.9,2703.3,2.3901924]
[1646798493823,2.65140933,2705.2,2703.5,0.3804]
[1646798493824,4.6598,2705.2,2703.5,0.3804]
[1646798494021,3.53382,2705.5,2705.0,1.13165876]
[1646798494223,0.03382,2705.5,2705.0,1.13165876]
[1646798494420,0.00421766,2706.1,2705.0,1.13165876]
[1646798494421,0.1847,2705.8,2705.0,1.13165876]
[1646798494621,0.00421766,2706.1,2705.0,1.13165876]
[1646798494822,3.6847,2706.3,2705.0,1.13165876]
[1646798495025,3.6847,2706.3,2705.0,2.98045876]
[1646798495221,3.6847,2706.3,2705.6,0.95329799]
[1646798495222,0.00127657,2706.1,2705.6,0.95329799]
[1646798495422,0.00127657,2706.1,2705.0,3.2292]
[1646798495721,0.00127657,2706.1,2705.0,3.3986796]
[1646798495922,3.5,2706.4,2705.0,4.3230019]
[1646798496128,1.10916,2706.5,2705.0,4.3230019]
[1646798496129,0.00127671,2706.1,2705.3,0.92439]
[1646798496328,0.00127671,2706.1,2705.4,0.3804]
[1646798496523,0.00127671,2706.1,2705.6,13.84841]
[1646798496723,0.00127671,2706.1,2705.7,0.1847]
[1646798496922,0.00127671,2706.1,2705.9,0.3804]
[1646798497167,3.6847,2707.2,2706.0,0.1847]
[1646798497168,4.38785587,2707.2,2706.0,0.1847]
[1646798497368,4.38785587,2707.2,2705.9,0.1847]
[1646798497568,0.00605787,2706.0,2705.6,1.0]
[1646798497770,0.00605787,2706.0,2705.5,0.04777867]
[1646798498773,0.00605787,2706.0,2705.1,0.05121186]
[1646798498975,0.00605787,2706.0,2705.5,0.1694796]
[1646798499776,0.00605787,2706.0,2705.6,1.21292047]
[1646798499975,0.00605787,2706.0,2705.5,0.1694796]
[1646798500674,0.00605787,2706.2,2705.5,0.1694796]
[1646798500923,0.00605787,2706.2,2705.5,0.21725827]
[1646798501113,0.00605787,2706.2,2705.5,0.78235827]
[1646798501313,0.00605787,2706.2,2705.5,0.40195827]
[1646798501912,0.00605787,2706.2,2705.5,1.38810787]
[1646798502515,0.00605787,2706.2,2705.6,0.3804]
[1646798502915,0.00605787,2706.2,2705.6,0.5651]
[1646798503115,0.00605787,2706.2,2706.0,1.22886736]
[1646798503518,0.00422084,2706.4,2706.0,1.22886736]
[1646798503916,0.00422084,2706.4,2706.0,1.60926736]
[1646798504319,0.1847,2707.4,2706.4,0.00963646]
[1646798504520,0.41790011,2708.0,2707.2,0.94457921]
[1646798504521,0.1847,2707.6,2707.2,0.94457921]
[1646798504764,0.1845,2707.9,2707.2,0.94457921]